fUST/lending_fUST_20241217
["ID","MTS","AMOUNT","RATE_DAILY","PERIOD"]
[345710110,1734429034039,-500.0,0.00024931,6]
[345710111,1734429034049,-1033.74,0.00024931,6]
[345710112,1734429034060,-3500.28,0.00024931,6]
[345710113,1734429034071,-7703.67,0.00024931,6]
[345710114,1734429034082,-565.32,0.00024931,6]
[345710115,1734429034093,-793.02,0.00024931,6]
[345710116,1734429034103,-500.0,0.00024931,6]
[345710117,1734429034114,-4193.14,0.00024931,6]
[345710118,1734429034124,-1118.67,0.00024931,6]
[345710119,1734429034134,-575.54,0.00024931,6]
[345710120,1734429034144,-500.0,0.00024931,6]
[345710121,1734429034154,-500.0,0.00024931,6]
[345710122,1734429034164,-500.0,0.00024931,6]
[345710123,1734429034174,-644.74,0.00024931,6]
[345710124,1734429034184,-4622.05,0.00024931,6]
[345710125,1734429034193,-5984.88,0.00024931,5]
[345710126,1734429034204,-500.0,0.00024931,6]
[345710127,1734429034215,-500.0,0.00024931,6]
[345710128,1734429034225,-706.11,0.00024931,6]
[345710129,1734429034236,-17432.89,0.00024931,6]
[345710130,1734429034245,-514.28,0.00024931,6]
[345710131,1734429034255,-954.4,0.00024931,6]
[345710132,1734429034265,-1132.26,0.00024931,6]
[345710133,1734429034275,-963.48,0.00024931,2]
[345710134,1734429034285,-500.0,0.00024931,6]
[345710135,1734429034295,-500.0,0.00024931,6]
[345710136,1734429034305,-500.0,0.00024931,6]
[345710137,1734429034315,-500.0,0.00024931,6]
[345710138,1734429034325,-292.44680738,0.00024931,6]
[345710139,1734429034335,-2717.02,0.00024931,6]
[345710140,1734429034348,-500.0,0.00024931,6]
[345710141,1734429034359,-1401.8,0.00024931,6]
[345710142,1734429034369,-1064.07,0.00024931,6]
[345710143,1734429034380,-652.29,0.00024931,6]
[345710144,1734429034390,-500.0,0.00024931,6]
[345710145,1734429034400,-500.0,0.00024931,6]
[345710146,1734429034410,-500.0,0.00024931,6]
[345710147,1734429034420,-1264.54,0.00024931,6]
[345710148,1734429034430,-500.0,0.00024931,6]
[345710149,1734429034440,-918.33,0.00024931,6]
[345710150,1734429034451,-500.0,0.00024931,6]
[345710151,1734429034461,-380.86646632,0.00024931,6]
[345710152,1734429034471,-583.04,0.00024931,6]
[345710153,1734429034483,-977.44,0.00024931,6]
[345710154,1734429034494,-500.0,0.00024931,6]
[345710155,1734429034506,-500.0,0.00024931,6]
[345710156,1734429034517,-618.9,0.00024931,6]
[345710157,1734429034529,-2444.3,0.00024931,6]
[345710158,1734429034540,-500.0,0.00024931,6]
[345710159,1734429034550,-718.77,0.00024931,6]
[345710160,1734429034561,-500.0,0.00024931,6]
[345710161,1734429034572,-832.07,0.00024931,6]
[345710162,1734429034583,-1048.7,0.00024931,6]
[345710163,1734429034596,-500.0,0.00024931,6]
[345710164,1734429034611,-500.0,0.00024931,6]
[345710165,1734429034622,-500.0,0.00024931,6]
[345710166,1734429034633,-500.0,0.00024931,6]
[345710167,1734429034643,-500.0,0.00024931,6]
[345710168,1734429034653,-500.0,0.00024931,6]
[345710169,1734429034663,-1032.7,0.00024931,6]
[345710170,1734429034674,-500.0,0.00024931,6]
[345710171,1734429034685,-500.0,0.00024931,6]
[345710172,1734429034694,-3901.04466677,0.00025,2]
[345710173,1734429034705,-666.0,0.00025105,2]
[345710174,1734429034715,-569.24,0.0002517,2]
[345710175,1734429034725,-195.42442395,0.00025204,2]
[345710176,1734429034735,-500.0,0.00025205,6]
[345710177,1734429034745,-500.0,0.00025205,6]
[345710178,1734429034755,-500.0,0.00025205,6]
[345710179,1734429034765,-500.0,0.00025205,6]
[345710180,1734429034775,-500.0,0.00025205,6]
[345710181,1734429034785,-767.51,0.00025205,6]
[345710182,1734429034795,-929.35,0.00025205,6]
[345710183,1734429034804,-500.0,0.00025205,6]
[345710184,1734429034814,-655.21,0.00025205,6]
[345710185,1734429034824,-500.0,0.00025205,6]
[345710186,1734429034834,-500.0,0.00025205,6]
[345710187,1734429034847,-500.0,0.00025205,6]
[345710188,1734429034858,-500.0,0.00025205,6]
[345710189,1734429034868,-500.0,0.00025205,6]
[345710190,1734429034878,-500.0,0.00025205,6]
[345710191,1734429034887,-500.0,0.00025205,6]
[345710192,1734429034897,-500.0,0.00025205,6]
[345710193,1734429034907,-500.0,0.00025205,6]
[345710194,1734429034916,-500.0,0.00025205,6]
[345710195,1734429034925,-500.0,0.00025205,6]
[345710196,1734429034935,-545.1546464,0.00025205,6]
[345710197,1734429034944,-500.0,0.00025205,6]
[345710198,1734429034954,-500.0,0.00025205,6]
[345710199,1734429034964,-500.0,0.00025205,6]
[345710200,1734429034975,-500.0,0.00025205,6]
[345710201,1734429034985,-500.0,0.00025205,6]
[345710202,1734429034995,-1095.11,0.00025205,6]
[345710203,1734429035006,-500.0,0.00025205,6]
[345710204,1734429035016,-168.0,0.00025205,6]
[345710205,1734429035026,-691.92,0.00025205,6]
[345710206,1734429035037,-937.09,0.00025205,6]
[345710207,1734429035046,-505.85,0.00025205,6]
[345710208,1734429035056,-500.0,0.00025205,6]
[345710209,1734429035066,-970.2,0.00025205,2]
[345710210,1734429035075,-500.0,0.00025205,6]
[345710211,1734429035085,-765.78,0.00025205,6]
[345710212,1734429035097,-500.0,0.00025205,6]
[345710213,1734429035107,-500.0,0.00025205,6]
[345710214,1734429035117,-500.0,0.00025205,6]
[345710215,1734429035126,-590.78,0.00025205,6]
[345710216,1734429035136,-926.68,0.00025205,6]
[345710217,1734429035145,-789.71,0.00025205,6]
[345710218,1734429035155,-879.98,0.00025205,6]
[345710219,1734429035164,-500.0,0.00025205,6]
[345710220,1734429035174,-500.0,0.00025205,6]
[345710221,1734429035184,-500.0,0.00025205,6]
[345710222,1734429035194,-760.1,0.00025205,6]
[345710223,1734429035203,-951.33,0.00025205,6]
[345710224,1734429035212,-500.0,0.00025205,2]
[345710225,1734429035222,-500.0,0.00025205,6]
[345710226,1734429035231,-629.82,0.00025205,6]
[345710227,1734429035241,-500.0,0.00025205,6]
[345710228,1734429035251,-500.0,0.00025205,6]
[345710229,1734429035261,-897.26,0.00025205,6]
[345710230,1734429035270,-715.88,0.00025205,6]
[345710231,1734429035280,-500.0,0.00025205,6]
[345710232,1734429035290,-500.0,0.00025205,6]
[345710233,1734429035300,-500.0,0.00025205,6]
[345710234,1734429035309,-759.77,0.00025205,6]
[345710235,1734429035319,-500.0,0.00025205,6]
[345710236,1734429035328,-628.05044594,0.00025205,6]
[345710237,1734429035340,-500.0,0.00025205,6]
[345710238,1734429035350,-1033.74,0.00025205,6]
[345710239,1734429035359,-3500.28,0.00025205,6]
[345710240,1734429035369,-7703.67,0.00025205,6]
[345710241,1734429035379,-565.32,0.00025205,6]
[345710242,1734429035519,-793.02,0.00025205,6]
[345710243,1734429035529,-500.0,0.00025205,6]
[345710244,1734429035539,-4193.14,0.00025205,6]
[345710245,1734429035549,-1118.67,0.00025205,6]
[345710246,1734429035558,-575.54,0.00025205,6]
[345710247,1734429035568,-500.0,0.00025205,6]
[345710248,1734429035578,-500.0,0.00025205,6]
[345710249,1734429035587,-500.0,0.00025205,6]
[345710250,1734429035598,-644.74,0.00025205,6]
[345710251,1734429035607,-4622.05,0.00025205,6]
[345710252,1734429035617,-5984.88,0.00025205,5]
[345710253,1734429035626,-500.0,0.00025205,6]
[345710254,1734429035636,-500.0,0.00025205,6]
[345710255,1734429035645,-706.11,0.00025205,6]
[345710256,1734429035655,-17432.89,0.00025205,6]
[345710257,1734429035665,-514.28,0.00025205,6]
[345710258,1734429035675,-954.4,0.00025205,6]
[345710259,1734429035684,-1132.26,0.00025205,6]
[345710260,1734429035694,-963.48,0.00025205,2]
[345710261,1734429035703,-500.0,0.00025205,6]
[345710262,1734429035713,-500.0,0.00025205,6]
[345710263,1734429035723,-500.0,0.00025205,6]
[345710264,1734429035732,-500.0,0.00025205,6]
[345710265,1734429035742,-2717.02,0.00025205,6]
[345710266,1734429035751,-500.0,0.00025205,6]
[345710267,1734429035761,-1401.8,0.00025205,6]
[345710268,1734429035770,-1064.07,0.00025205,6]
[345710269,1734429035779,-652.29,0.00025205,6]
[345710270,1734429035789,-500.0,0.00025205,6]
[345710271,1734429035798,-500.0,0.00025205,6]
[345710272,1734429035807,-500.0,0.00025205,6]
[345710273,1734429035817,-1264.54,0.00025205,6]
[345710274,1734429035826,-500.0,0.00025205,6]
[345710275,1734429035836,-918.33,0.00025205,6]
[345710276,1734429035848,-500.0,0.00025205,6]
[345710277,1734429035857,-583.04,0.00025205,6]
[345710278,1734429035867,-977.44,0.00025205,6]
[345710279,1734429035877,-500.0,0.00025205,6]
[345710280,1734429035887,-500.0,0.00025205,6]
[345710281,1734429035896,-618.9,0.00025205,6]
[345710282,1734429035906,-2444.3,0.00025205,6]
[345710283,1734429035915,-500.0,0.00025205,6]
[345710284,1734429035925,-718.77,0.00025205,6]
[345710285,1734429035934,-500.0,0.00025205,6]
[345710286,1734429035943,-832.07,0.00025205,6]
[345710287,1734429035952,-1048.7,0.00025205,6]
[345710288,1734429035962,-500.0,0.00025205,6]
[345710289,1734429035973,-500.0,0.00025205,6]
[345710290,1734429035985,-500.0,0.00025205,6]
[345710291,1734429035995,-500.0,0.00025205,6]
[345710292,1734429036004,-500.0,0.00025205,6]
[345710293,1734429036015,-500.0,0.00025205,6]
[345710294,1734429036025,-1032.7,0.00025205,6]
[345710295,1734429036035,-500.0,0.00025205,6]
[345710296,1734429036044,-500.0,0.00025205,6]
[345710297,1734429036054,-500.0,0.00025479,6]
[345710298,1734429036064,-500.0,0.00025479,6]
[345710299,1734429036075,-500.0,0.00025479,6]
[345710300,1734429036087,-500.0,0.00025479,6]
[345710301,1734429036099,-500.0,0.00025479,6]
[345710302,1734429036109,-767.51,0.00025479,6]
[345710303,1734429036119,-929.35,0.00025479,6]
[345710304,1734429036128,-500.0,0.00025479,6]
[345710305,1734429036139,-655.21,0.00025479,6]
[345710306,1734429036148,-500.0,0.00025479,6]
[345710307,1734429036157,-500.0,0.00025479,6]
[345710308,1734429036167,-500.0,0.00025479,6]
[345710309,1734429036176,-500.0,0.00025479,6]
[345710310,1734429036186,-500.0,0.00025479,6]
[345710311,1734429036196,-500.0,0.00025479,6]
[345710312,1734429036205,-500.0,0.00025479,6]
[345710313,1734429036215,-500.0,0.00025479,6]
[345710314,1734429036227,-500.0,0.00025479,6]
[345710315,1734429036237,-244.9993727,0.00025479,6]
[345710316,1734429036247,-500.0,0.00025479,6]
[345710317,1734429036257,-500.0,0.00025479,6]
[345710318,1734429036267,-500.0,0.00025479,6]
[345710319,1734429036277,-500.0,0.00025479,6]
[345710320,1734429036287,-500.0,0.00025479,6]
[345710321,1734429036297,-500.0,0.00025479,6]
[345710322,1734429036306,-1095.11,0.00025479,6]
[345710323,1734429036316,-500.0,0.00025479,6]
[345710324,1734429036326,-168.0,0.00025479,6]
[345710325,1734429036336,-691.92,0.00025479,6]
[345710326,1734429036348,-937.09,0.00025479,6]
[345710327,1734429036358,-505.85,0.00025479,6]
[345710328,1734429036368,-587.85953832,0.00025479,6]
[345710329,1734429036378,-970.2,0.00025479,2]
[345710330,1734429036387,-500.0,0.00025479,6]
[345710331,1734429036397,-765.78,0.00025479,6]
[345710332,1734429036406,-500.0,0.00025479,6]
[345710333,1734429036416,-500.0,0.00025479,6]
[345710334,1734429036426,-500.0,0.00025479,6]
[345710335,1734429036436,-590.78,0.00025479,6]
[345710336,1734429036446,-926.68,0.00025479,6]
[345710337,1734429036455,-789.71,0.00025479,6]
[345710338,1734429036465,-879.98,0.00025479,6]
[345710339,1734429036475,-500.0,0.00025479,6]
[345710340,1734429036486,-500.0,0.00025479,6]
[345710341,1734429036496,-500.0,0.00025479,6]
[345710342,1734429036506,-760.1,0.00025479,6]
[345710343,1734429036515,-951.33,0.00025479,6]
[345710344,1734429036524,-500.0,0.00025479,2]
[345710345,1734429036534,-500.0,0.00025479,6]
[345710346,1734429036543,-629.82,0.00025479,6]
[345710347,1734429036553,-500.0,0.00025479,6]
[345710348,1734429036563,-500.0,0.00025479,6]
[345710349,1734429036572,-897.26,0.00025479,6]
[345710350,1734429036582,-715.88,0.00025479,6]
[345710351,1734429036594,-500.0,0.00025479,6]
[345710352,1734429036604,-500.0,0.00025479,6]
[345710353,1734429036614,-500.0,0.00025479,6]
[345710354,1734429036623,-759.77,0.00025479,6]
[345710355,1734429036633,-500.0,0.00025479,6]
[345710356,1734429036643,-500.0,0.00025479,6]
[345710357,1734429036652,-1033.74,0.00025479,6]
[345710358,1734429036662,-3500.28,0.00025479,6]
[345710359,1734429036672,-7703.67,0.00025479,6]
[345710360,1734429036681,-565.32,0.00025479,6]
[345710361,1734429036691,-793.02,0.00025479,6]
[345710362,1734429036701,-563.74349869,0.00025479,6]
[345710363,1734429036712,-4193.14,0.00025479,6]
[345710364,1734429036721,-1118.67,0.00025479,6]
[345710365,1734429036730,-575.54,0.00025479,6]
[345710366,1734429036739,-338.98179755,0.00025479,6]
[345710367,1734429036748,-500.0,0.00025479,6]
[345710368,1734429036758,-500.0,0.00025479,6]
[345710369,1734429036768,-644.74,0.00025479,6]
[345710370,1734429036778,-4622.05,0.00025479,6]
[345710371,1734429036786,-5984.88,0.00025479,5]
[345710372,1734429036796,-355.65589253,0.00025479,6]
[345710373,1734429036806,-500.0,0.00025479,6]
[345710374,1734429036815,-706.11,0.00025479,6]
[345710375,1734429036825,-17432.89,0.00025479,6]
[345710376,1734429036834,-514.28,0.00025479,6]
[345710377,1734429036846,-954.4,0.00025479,6]
[345710378,1734429036855,-1132.26,0.00025479,6]
[345710379,1734429036865,-963.48,0.00025479,2]
[345710380,1734429036875,-500.0,0.00025479,6]
[345710381,1734429036885,-500.0,0.00025479,6]
[345710382,1734429036895,-500.0,0.00025479,6]
[345710383,1734429036904,-500.0,0.00025479,6]
[345710384,1734429036914,-2717.02,0.00025479,6]
[345710385,1734429036924,-448.54984051,0.00025479,6]
[345710386,1734429036934,-1401.8,0.00025479,6]
[345710387,1734429036943,-1064.07,0.00025479,6]
[345710388,1734429036952,-652.29,0.00025479,6]
[345710389,1734429036962,-500.0,0.00025479,6]
[345710390,1734429036973,-188.45885836,0.00025479,6]
[345710391,1734429036983,-635.90727019,0.00025479,6]
[345710392,1734429036993,-1264.54,0.00025479,6]
[345710393,1734429037002,-500.0,0.00025479,6]
[345710394,1734429037015,-918.33,0.00025479,6]
[345710395,1734429037024,-500.0,0.00025479,6]
[345710396,1734429037034,-583.04,0.00025479,6]
[345710397,1734429037044,-977.44,0.00025479,6]
[345710398,1734429037055,-500.0,0.00025479,6]
[345710399,1734429037065,-500.0,0.00025479,6]
[345710400,1734429037075,-618.9,0.00025479,6]
[345710401,1734429037085,-2444.3,0.00025479,6]
[345710402,1734429037098,-500.0,0.00025479,6]
[345710403,1734429037109,-718.77,0.00025479,6]
[345710404,1734429037119,-500.0,0.00025479,6]
[345710405,1734429037128,-832.07,0.00025479,6]
[345710406,1734429037138,-1048.7,0.00025479,6]
[345710407,1734429037148,-500.0,0.00025479,6]
[345710408,1734429037158,-500.0,0.00025479,6]
[345710409,1734429037168,-500.0,0.00025479,6]
[345710410,1734429037178,-500.0,0.00025479,6]
[345710411,1734429037188,-500.0,0.00025479,6]
[345710412,1734429037198,-500.0,0.00025479,6]
[345710413,1734429037208,-1032.7,0.00025479,6]
[345710414,1734429037218,-500.0,0.00025479,6]
[345710415,1734429037228,-9346.37,0.000255,2]
[345710417,1734429037239,-420.0,0.00025533,2]
[345710419,1734429037249,-153.0,0.00025699,2]
[345710420,1734429037259,-500.0,0.00025753,6]
[345710421,1734429037270,-500.0,0.00025753,6]
[345710422,1734429037280,-509.96632548,0.00025753,6]
[345710423,1734429037291,-500.0,0.00025753,6]
[345710424,1734429037301,-500.0,0.00025753,6]
[345710425,1734429037310,-767.51,0.00025753,6]
[345710426,1734429037320,-929.35,0.00025753,6]
[345710427,1734429037331,-500.0,0.00025753,6]
[345710428,1734429037342,-655.21,0.00025753,6]
[345710429,1734429037352,-500.0,0.00025753,6]
[345710430,1734429037362,-500.0,0.00025753,6]
[345710431,1734429037372,-500.0,0.00025753,6]
[345710432,1734429037382,-500.0,0.00025753,6]
[345710434,1734429037391,-500.0,0.00025753,6]
[345710435,1734429037401,-500.0,0.00025753,6]
[345710436,1734429037411,-500.0,0.00025753,6]
[345710437,1734429037421,-500.0,0.00025753,6]
[345710438,1734429037430,-417.42690397,0.00025753,6]
[345710440,1734429037439,-500.0,0.00025753,6]
[345710442,1734429037449,-500.0,0.00025753,6]
[345710444,1734429037459,-500.0,0.00025753,6]
[345710446,1734429037468,-500.0,0.00025753,6]
[345710448,1734429037478,-500.0,0.00025753,6]
[345710449,1734429037487,-500.0,0.00025753,6]
[345710450,1734429037497,-1095.11,0.00025753,6]
[345710451,1734429037507,-500.0,0.00025753,6]
[345710452,1734429037517,-168.0,0.00025753,6]
[345710453,1734429037527,-691.92,0.00025753,6]
[345710454,1734429037537,-937.09,0.00025753,6]
[345710455,1734429037547,-505.85,0.00025753,6]
[345710456,1734429037557,-970.2,0.00025753,2]
[345710457,1734429037567,-357.01910964,0.00025753,6]
[345710458,1734429037576,-765.78,0.00025753,6]
[345710459,1734429037586,-500.0,0.00025753,6]
[345710460,1734429037596,-500.0,0.00025753,6]
[345710461,1734429037603,-500.0,0.00025753,6]
[345710462,1734429037611,-590.78,0.00025753,6]
[345710463,1734429037621,-926.68,0.00025753,6]
[345710464,1734429037630,-789.71,0.00025753,6]
[345710465,1734429037640,-879.98,0.00025753,6]
[345710466,1734429037650,-500.0,0.00025753,6]
[345710467,1734429037659,-500.0,0.00025753,6]
[345710468,1734429037668,-500.0,0.00025753,6]
[345710469,1734429037677,-760.1,0.00025753,6]
[345710470,1734429037687,-951.33,0.00025753,6]
[345710471,1734429037696,-500.0,0.00025753,2]
[345710472,1734429037707,-500.0,0.00025753,6]
[345710473,1734429037716,-629.82,0.00025753,6]
[345710474,1734429037724,-500.0,0.00025753,6]
[345710476,1734429037731,-276.5240443,0.00025753,6]
[345710478,1734429037741,-897.26,0.00025753,6]
[345710480,1734429037748,-715.88,0.00025753,6]
[345710481,1734429037755,-500.0,0.00025753,6]
[345710483,1734429037763,-500.0,0.00025753,6]
[345710485,1734429037773,-500.0,0.00025753,6]
[345710487,1734429037783,-759.77,0.00025753,6]
[345710489,1734429037790,-500.0,0.00025753,6]
[345710491,1734429037798,-500.0,0.00025753,6]
[345710493,1734429037808,-1033.74,0.00025753,6]
[345710495,1734429037816,-3500.28,0.00025753,6]
[345710497,1734429037825,-7703.67,0.00025753,6]
[345710499,1734429037835,-565.32,0.00025753,6]
[345710502,1734429037846,-793.02,0.00025753,6]
[345710504,1734429037858,-4193.14,0.00025753,6]
[345710506,1734429037867,-1118.67,0.00025753,6]
[345710508,1734429037874,-575.54,0.00025753,6]
[345710510,1734429037883,-500.0,0.00025753,6]
[345710511,1734429037890,-500.0,0.00025753,6]
[345710513,1734429037898,-644.74,0.00025753,6]
[345710515,1734429037909,-4622.05,0.00025753,6]
[345710518,1734429037918,-5984.88,0.00025753,5]
[345710520,1734429037928,-500.0,0.00025753,6]
[345710525,1734429037971,-706.11,0.00025753,6]
[345710527,1734429037985,-17432.89,0.00025753,6]
[345710529,1734429037995,-514.28,0.00025753,6]
[345710531,1734429038004,-954.4,0.00025753,6]
[345710533,1734429038014,-1132.26,0.00025753,6]
[345710534,1734429038026,-963.48,0.00025753,2]
[345710535,1734429038035,-500.0,0.00025753,6]
[345710536,1734429038045,-500.0,0.00025753,6]
[345710537,1734429038054,-500.0,0.00025753,6]
[345710538,1734429038064,-500.0,0.00025753,6]
[345710539,1734429038073,-2717.02,0.00025753,6]
[345710540,1734429038084,-1401.8,0.00025753,6]
[345710541,1734429038097,-1064.07,0.00025753,6]
[345710542,1734429038106,-652.29,0.00025753,6]
[345710543,1734429038116,-627.05060666,0.00025753,6]
[345710544,1734429038125,-1264.54,0.00025753,6]
[345710545,1734429038134,-500.0,0.00025753,6]
[345710546,1734429038143,-918.33,0.00025753,6]
[345710547,1734429038152,-500.0,0.00025753,6]
[345710548,1734429038162,-583.04,0.00025753,6]
[345710549,1734429038172,-977.44,0.00025753,6]
[345710550,1734429038182,-500.0,0.00025753,6]
[345710551,1734429038191,-500.0,0.00025753,6]
[345710552,1734429038200,-618.9,0.00025753,6]
[345710553,1734429038209,-2444.3,0.00025753,6]
[345710554,1734429038218,-500.0,0.00025753,6]
[345710555,1734429038227,-718.77,0.00025753,6]
[345710556,1734429038236,-500.0,0.00025753,6]
[345710557,1734429038245,-832.07,0.00025753,6]
[345710558,1734429038254,-1048.7,0.00025753,6]
[345710559,1734429038263,-500.0,0.00025753,6]
[345710561,1734429038272,-500.0,0.00025753,6]
[345710562,1734429038282,-500.0,0.00025753,6]
[345710565,1734429038291,-500.0,0.00025753,6]
[345710566,1734429038301,-500.0,0.00025753,6]
[345710568,1734429038311,-500.0,0.00025753,6]
[345710570,1734429038319,-1032.7,0.00025753,6]
[345710572,1734429038329,-500.0,0.00025753,6]
[345710574,1734429038338,-400.0,0.00025753,2]
[345710576,1734429038349,-1672.77,0.000258,14]
[345710578,1734429038359,-153.0,0.00025809,2]
[345710580,1734429038369,-153.0,0.00025809,2]
[345710582,1734429038379,-153.0,0.00025809,2]
[345710584,1734429038388,-153.0,0.00025809,2]
[345710586,1734429038397,-153.0,0.00025809,2]
[345710588,1734429038408,-153.0,0.00025809,2]
[345710590,1734429038417,-153.0,0.00025809,2]
[345710592,1734429038426,-153.0,0.00025809,2]
[345710593,1734429038435,-153.0,0.00025809,2]
[345710595,1734429038444,-153.0,0.00025809,2]
[345710597,1734429038454,-153.0,0.00025809,2]
[345710599,1734429038464,-163.232853,0.00025848,20]
[345710601,1734429038473,-420.0,0.00025887,2]
[345710603,1734429038482,-153.0,0.00025934,2]
[345710605,1734429038491,-493.98453061,0.00026,3]
[345710607,1734429038501,-334.0,0.00026,12]
[345710609,1734429038510,-35196.06787333,0.00026,4]
[345710611,1734429038519,-500.0,0.00026027,6]
[345710613,1734429038529,-500.0,0.00026027,6]
[345710615,1734429038538,-500.0,0.00026027,6]
[345710617,1734429038547,-500.0,0.00026027,6]
[345710619,1734429038555,-767.51,0.00026027,6]
[345710621,1734429038565,-929.35,0.00026027,6]
[345710623,1734429038575,-500.0,0.00026027,6]
[345710625,1734429038585,-655.21,0.00026027,6]
[345710627,1734429038595,-503.6,0.00026027,6]
[345710628,1734429038604,-500.0,0.00026027,6]
[345710630,1734429038613,-500.0,0.00026027,6]
[345710632,1734429038622,-500.0,0.00026027,6]
[345710634,1734429038632,-500.0,0.00026027,6]
[345710636,1734429038641,-500.0,0.00026027,6]
[345710638,1734429038651,-500.0,0.00026027,6]
[345710640,1734429038660,-500.0,0.00026027,6]
[345710642,1734429038669,-500.0,0.00026027,6]
[345710644,1734429038678,-500.0,0.00026027,6]
[345710646,1734429038688,-500.0,0.00026027,6]
[345710648,1734429038697,-500.0,0.00026027,6]
[345710650,1734429038706,-288.54611692,0.00026027,6]
[345710652,1734429038716,-500.0,0.00026027,6]
[345710654,1734429038725,-1095.11,0.00026027,6]
[345710656,1734429038735,-500.0,0.00026027,6]
[345710658,1734429038744,-168.0,0.00026027,6]
[345710660,1734429038753,-691.92,0.00026027,6]
[345710662,1734429038762,-937.09,0.00026027,6]
[345710664,1734429038771,-505.85,0.00026027,6]
[345710666,1734429038781,-970.2,0.00026027,2]
[345710668,1734429038790,-765.78,0.00026027,6]
[345710670,1734429038799,-500.0,0.00026027,6]
[345710672,1734429038808,-500.0,0.00026027,6]
[345710674,1734429038817,-500.0,0.00026027,6]
[345710676,1734429038826,-590.78,0.00026027,6]
[345710678,1734429038835,-926.68,0.00026027,6]
[345710680,1734429038847,-789.71,0.00026027,6]
[345710682,1734429038856,-879.98,0.00026027,6]
[345710684,1734429038865,-219.37,0.00026027,6]
[345710686,1734429038875,-500.0,0.00026027,6]
[345710688,1734429038884,-500.0,0.00026027,6]
[345710690,1734429038894,-760.1,0.00026027,6]
[345710692,1734429038903,-951.33,0.00026027,6]
[345710694,1734429038912,-500.0,0.00026027,2]
[345710696,1734429038922,-459.37623531,0.00026027,6]
[345710698,1734429038931,-629.82,0.00026027,6]
[345710700,1734429038940,-500.0,0.00026027,6]
[345710702,1734429038949,-897.26,0.00026027,6]
[345710704,1734429038959,-715.88,0.00026027,6]
[345710706,1734429038967,-500.0,0.00026027,6]
[345710708,1734429038978,-488.29,0.00026027,6]
[345710710,1734429038988,-500.0,0.00026027,6]
[345710712,1734429038998,-759.77,0.00026027,6]
[345710714,1734429039010,-500.0,0.00026027,6]
[345710716,1734429039020,-500.0,0.00026027,6]
[345710718,1734429039029,-1033.74,0.00026027,6]
[345710720,1734429039039,-3500.28,0.00026027,6]
[345710722,1734429039048,-7703.67,0.00026027,6]
[345710724,1734429039057,-565.32,0.00026027,6]
[345710726,1734429039067,-793.02,0.00026027,6]
[345710728,1734429039077,-4193.14,0.00026027,6]
[345710730,1734429039087,-1118.67,0.00026027,6]
[345710732,1734429039099,-575.54,0.00026027,6]
[345710734,1734429039109,-500.0,0.00026027,6]